bitfinex-derivatives/quotes_SOLF0:USTF0_20241227
["timestamp","ask_amount","ask_price","bid_price","bid_amount"]
[1735291344482,1.5907,194.43,194.24,20.39205434]
[1735291344686,1.5907,194.43,194.27,4.8]
[1735291344886,1.5907,194.43,194.28,20.39205434]
[1735291345288,20.39205434,194.41,194.24,20.39205434]
[1735291345484,2.5764,194.31,194.2,20.39205434]
[1735291345687,20.39205434,194.37,194.21,4.8]
[1735291345888,3.0611,194.36,194.21,4.8]
[1735291346182,3.0611,194.36,194.22,4.8]
[1735291346383,3.0611,194.36,194.28,20.39205434]
[1735291346687,1.5907,194.43,194.29,4.8]
[1735291347495,1.5907,194.43,194.33,2.5761]
[1735291347687,1.5907,194.43,194.29,4.8]
[1735291348390,1.5907,194.43,194.32,20.39205434]
[1735291348584,2.5752,194.4,194.32,22.96825434]
[1735291348790,1.5907,194.43,194.32,20.39205434]
[1735291349189,3.0234,194.44,194.38,2.5754]
[1735291349190,2.5748,194.44,194.38,2.5754]
[1735291349388,1.6617,194.49,194.36,4.8]
[1735291349590,1.6617,194.49,194.37,25.19205434]
[1735291349789,2.5748,194.44,194.37,25.19205434]
[1735291350087,2.5748,194.44,194.37,4.8]
[1735291350293,2.5746,194.45,194.39,2.5753]
[1735291350994,1.5448,194.48,194.37,4.8]
[1735291351392,3.1399,194.48,194.37,4.8]
[1735291352395,2.5748,194.43,194.37,4.8]
[1735291352597,3.1399,194.48,194.34,20.39205434]
[1735291352897,20.39205434,194.46,194.32,7.3762]
[1735291353093,4.8,194.45,194.24,4.8]
[1735291353295,2.5767,194.29,194.24,2.5772]
[1735291353493,20.39205434,194.42,194.24,2.5772]
[1735291353692,20.39205434,194.42,194.21,0.24919]
[1735291353894,4.8,194.45,194.21,0.24919]
[1735291354107,20.39205434,194.42,194.25,20.39205434]
[1735291354597,20.39205434,194.42,194.27,2.5769]
[1735291354799,20.39205434,194.42,194.25,20.39205434]
[1735291355598,20.39205434,194.42,194.27,2.5769]
[1735291355795,20.39205434,194.42,194.25,20.39205434]
[1735291356501,4.78,194.41,194.25,20.39205434]
[1735291356993,1.5384,194.4,194.25,20.39205434]
[1735291358995,1.5384,194.4,194.21,5.02919]
[1735291359295,20.39205434,194.37,194.21,0.24919]
[1735291359502,2.577,194.26,194.21,0.24919]
[1735291359704,3.2253,194.36,194.21,0.24919]
[1735291359903,2.5769,194.27,194.21,2.82689]
[1735291360606,3.2253,194.36,194.21,0.24919]
[1735291361100,3.2253,194.36,194.22,2.5775]
[1735291361301,3.2253,194.36,194.21,0.24919]
[1735291361701,2.577,194.26,194.21,0.24919]
[1735291361900,20.39205434,194.35,194.21,0.24919]
[1735291362105,2.5769,194.28,194.21,2.82689]
[1735291362306,3.2253,194.36,194.21,0.24919]
[1735291362902,2.5765,194.31,194.24,2.5773]
[1735291363101,3.2253,194.36,194.24,2.5773]
[1735291363596,3.2253,194.36,194.21,0.24919]
[1735291363899,2.5759,194.35,194.24,20.39205434]
[1735291364098,3.2253,194.36,194.25,4.78]
[1735291364301,1.6237,194.36,194.25,4.78]
[1735291364504,4.1994,194.36,194.29,2.5765]
[1735291364705,1.5384,194.4,194.25,4.78]
[1735291364904,1.5384,194.4,194.28,20.39205434]
[1735291366016,2.5757,194.36,194.3,2.5764]
[1735291366209,2.5757,194.36,194.28,20.39205434]
[1735291366804,1.5384,194.4,194.29,2.5765]
[1735291367008,1.5384,194.4,194.25,4.78]
[1735291368304,21.93045434,194.4,194.25,4.78]
[1735291368504,21.93045434,194.4,194.2,25.17205434]
[1735291368712,2.577,194.27,194.21,2.5776]
[1735291368913,25.17205434,194.36,194.21,2.5776]
[1735291369115,25.17205434,194.36,194.2,25.17205434]
[1735291369614,25.17205434,194.36,194.2,20.39205434]
[1735291369911,2.577,194.26,194.2,20.39205434]
[1735291370110,25.17205434,194.36,194.2,20.39205434]
[1735291370712,21.93045434,194.4,194.2,20.39205434]
[1735291370907,21.93045434,194.4,194.26,2.577]
[1735291371114,21.93045434,194.4,194.2,20.39205434]
[1735291371503,2.576,194.34,194.23,2.5773]
[1735291371704,21.93045434,194.4,194.23,2.5773]
[1735291371906,21.93045434,194.4,194.2,20.39205434]
[1735291372112,2.5765,194.3,194.2,20.39205434]
[1735291373007,21.93045434,194.4,194.2,20.39205434]
[1735291373319,21.93045434,194.4,194.2,10.39205434]
[1735291373515,20.39205434,194.36,194.2,10.39205434]
[1735291373703,20.39205434,194.28,194.13,6.98022261]
[1735291373905,4.7547,194.27,194.13,6.98022261]
[1735291374517,4.7547,194.27,194.13,0.23269]
[1735291374816,2.5782,194.17,194.13,0.23269]
[1735291375013,4.7547,194.27,194.13,0.23269]
[1735291375213,20.39205434,194.24,194.13,0.23269]
[1735291376113,2.5777,194.21,194.13,0.23269]
[1735291376313,20.39205434,194.24,194.13,0.23269]
[1735291376813,2.5786,194.14,194.13,0.23269]
[1735291377207,20.39205434,194.2,194.01,1.5402]
[1735291377413,25.17205434,194.2,194.01,1.5402]
[1735291377715,25.17205434,194.2,194.01,6.3202]
[1735291377913,2.5786,194.15,194.04,2.5799]
[1735291378115,25.17205434,194.2,194.04,2.5799]
[1735291378316,1.5948,194.14,194.0,22.02805434]
[1735291378617,2.5793,194.09,194.02,2.5802]
[1735291378814,1.6389,194.13,194.0,22.02805434]
[1735291380418,2.579,194.12,194.0,22.02805434]
[1735291380711,1.6389,194.13,194.0,22.02805434]
[1735291381519,25.17205434,194.2,194.0,22.02805434]
[1735291381719,25.17205434,194.2,194.05,20.39205434]
[1735291381921,25.17205434,194.2,194.06,4.78]
[1735291382217,20.39205434,194.24,194.06,4.78]
[1735291382418,20.39205434,194.24,194.06,6.2819]
[1735291382621,20.39205434,194.24,194.13,2.5786]
[1735291382622,2.578,194.2,194.13,2.5786]
[1735291382921,20.39205434,194.24,194.13,2.5786]
[1735291383119,20.39205434,194.24,194.09,20.39205434]
[1735291383320,2.5779,194.2,194.09,20.39205434]
[1735291383722,4.78,194.26,194.09,20.39205434]
[1735291383929,2.578,194.19,194.09,20.39205434]
[1735291384321,4.78,194.26,194.09,20.39205434]
[1735291384822,21.93295434,194.28,194.06,6.2819]
[1735291384823,1.5409,194.28,194.13,20.39205434]
[1735291385018,1.5409,194.28,194.14,4.78]
[1735291385415,1.5409,194.28,194.14,7.3586]
[1735291385621,20.39205434,194.27,194.14,4.78]
[1735291385822,4.78,194.26,194.09,20.39205434]
[1735291386623,20.39205434,194.23,194.06,1.5019]
[1735291387118,2.5789,194.12,194.06,1.5019]
[1735291387320,20.39205434,194.19,194.06,1.5019]
[1735291387525,3.2329,194.18,194.06,1.5019]
[1735291387726,3.2329,194.18,194.04,58.36]
[1735291388222,2.579,194.11,194.05,2.5798]
[1735291389328,2.5788,194.13,194.07,2.5795]
[1735291389620,1.6025,194.17,194.04,4.78]
[1735291389828,2.5784,194.16,194.1,2.5791]
[1735291390029,3.2329,194.18,194.04,4.78]
[1735291391926,2.5792,194.1,194.04,7.3599]
[1735291392827,2.5792,194.1,194.05,2.5798]
[1735291393029,2.5788,194.13,194.04,4.78]
[1735291393232,1.6253,194.17,194.08,2.5794]
[1735291393425,1.6253,194.17,194.04,4.78]
[1735291394130,2.5789,194.12,194.04,4.78]
[1735291394521,2.5789,194.12,194.06,2.5796]
[1735291394729,2.5793,194.09,194.04,4.78]
[1735291394926,1.6253,194.17,194.04,4.78]
[1735291395228,2.5792,194.1,194.04,4.78]
[1735291395434,1.6253,194.17,194.04,4.78]
[1735291395634,1.6253,194.17,194.01,1.5194]
[1735291395829,2.5795,194.08,194.0,22.02805434]
[1735291396235,1.6253,194.17,194.02,2.5802]
[1735291396429,20.39205434,194.04,193.83,168.6883154]
[1735291396627,20.39205434,193.98,193.83,168.6883154]
[1735291396935,1.5081,193.97,193.83,168.6883154]
[1735291397230,20.39205434,193.94,193.88,26.99013046]
[1735291398230,20.39205434,193.94,193.79,4.78]
[1735291398439,25.17205434,193.94,193.79,4.78]
[1735291398633,1.5081,193.97,193.7,20.39205434]
[1735291398834,1.5081,193.97,193.81,4.78]
[1735291399740,2.5814,193.93,193.86,2.5823]
[1735291399931,1.5081,193.97,193.81,4.78]
[1735291400331,4.0891,193.97,193.82,20.39205434]
[1735291400735,1.5081,193.97,193.9,2.5818]
[1735291401731,1.5081,193.97,193.82,20.39205434]
[1735291402030,1.5081,193.97,193.83,4.78]
[1735291402227,1.5081,193.97,193.82,20.39205434]
[1735291402430,20.39205434,193.95,193.8,7.8963]
[1735291402832,2.5817,193.91,193.83,2.5827]
[1735291403134,20.39205434,193.95,193.8,3.1163]
[1735291403336,2.5817,193.91,193.8,1.5833]
[1735291403527,20.39205434,193.95,193.8,1.5833]
[1735291403730,20.39205434,193.95,193.78,25.17205434]
[1735291403930,2.5821,193.88,193.8,2.5831]
[1735291404427,20.39205434,193.95,193.78,25.17205434]
[1735291404632,20.39205434,193.91,193.78,4.78]
[1735291404928,20.39205434,193.88,193.73,1.5938]
[1735291405133,1.6374,193.87,193.73,1.5938]
[1735291405334,20.39205434,193.84,193.7,2.5844]
[1735291405633,20.39205434,193.81,193.64,20.39205434]
[1735291405846,2.5841,193.74,193.65,4.78]
[1735291406133,2.5841,193.74,193.64,20.39205434]
[1735291406540,20.39205434,193.81,193.65,2.5851]
[1735291406739,20.39205434,193.81,193.64,20.39205434]
[1735291407037,2.5839,193.75,193.67,2.5849]
[1735291407738,25.17205434,193.77,193.63,1.5938]
[1735291408034,25.17205434,193.77,193.6,20.39205434]
[1735291408035,9.5089,193.76,193.6,20.39205434]
[1735291408238,9.5089,193.76,193.6,2.5857]
[1735291408638,20.39205434,193.73,193.6,2.5857]
[1735291408941,4.7289,193.76,193.57,4.78]
[1735291409135,4.7289,193.76,193.6,20.39205434]
[1735291409331,2.5848,193.68,193.6,20.39205434]
[1735291409534,4.7289,193.76,193.59,2.5859]
[1735291409535,20.39205434,193.73,193.59,2.5859]
[1735291409740,20.39205434,193.73,193.57,4.78]
[1735291410036,20.39205434,193.73,193.6,2.5858]
[1735291410241,20.39205434,193.73,193.57,4.78]
[1735291410442,2.5847,193.69,193.57,4.78]
[1735291410632,20.39205434,193.73,193.62,2.5855]
[1735291410937,20.39205434,193.73,193.57,4.78]
[1735291411137,2.5844,193.71,193.57,4.78]
[1735291411341,4.7289,193.76,193.6,20.39205434]
[1735291412040,4.7289,193.76,193.62,2.5855]
[1735291412730,4.7289,193.76,193.6,20.39205434]
[1735291413131,3.1277,193.76,193.6,20.39205434]
[1735291413337,20.39205434,193.81,193.64,20.39205434]
[1735291413533,20.39205434,193.81,193.65,8.0644]
[1735291413939,2.5834,193.79,193.65,8.0644]
[1735291414243,25.17205434,193.85,193.68,20.39205434]
[1735291415035,2.5834,193.79,193.7,2.5844]
[1735291415233,20.39205434,193.81,193.65,8.0644]
[1735291415437,1.6173,193.8,193.65,8.0644]
[1735291416239,4.2005,193.8,193.72,2.5842]
[1735291416439,25.17205434,193.85,193.68,20.39205434]
[1735291416642,6.3973,193.88,193.68,20.39205434]
[1735291416839,1.6173,193.88,193.72,20.39205434]
[1735291417044,3.294,193.89,193.76,20.39205434]
[1735291417347,3.294,193.89,193.77,1.5238]
[1735291418343,20.39205434,193.93,193.77,1.5238]
[1735291418845,2.582,193.89,193.78,2.5834]
[1735291419046,20.39205434,193.93,193.77,1.5238]
[1735291421446,2.5824,193.86,193.79,2.5833]
[1735291423245,2.5822,193.88,193.81,2.5829]
[1735291423546,25.17205434,193.93,193.81,2.5829]
[1735291423847,2.5819,193.9,193.81,2.5829]
[1735291424035,25.17205434,193.93,193.77,1.5238]
[1735291424235,20.39205434,193.93,193.77,1.5238]
[1735291424445,2.5815,193.93,193.8,20.39205434]
[1735291424647,3.1059,193.94,193.84,2.5825]
[1735291424840,1.5364,193.94,193.81,4.78]
[1735291426145,1.5446,193.98,193.81,4.78]
[1735291426344,1.5446,193.98,193.84,20.39205434]
[1735291427941,1.5446,193.98,193.81,4.78]
[1735291428143,1.5446,193.98,193.85,2.5824]
[1735291428347,1.5446,193.98,193.81,4.78]
[1735291428749,2.5815,193.93,193.87,2.5822]
[1735291428949,2.5815,193.93,193.81,4.78]
[1735291429245,2.5815,193.93,193.85,2.5824]
[1735291429551,2.5815,193.93,193.81,4.78]
[1735291430049,2.5815,193.92,193.86,2.5823]
[1735291430245,1.5446,193.98,193.81,4.78]
[1735291430445,2.582,193.89,193.83,2.5826]
[1735291430652,1.5446,193.98,193.78,1.6671]
[1735291430950,1.5446,193.98,193.79,4.78]
[1735291431250,2.5823,193.87,193.79,4.78]
[1735291431950,4.78,193.95,193.79,4.78]
[1735291432450,2.5817,193.91,193.79,4.78]
[1735291432843,1.5446,193.98,193.79,4.78]
[1735291433042,1.5446,193.98,193.78,6.4471]
[1735291433442,2.5823,193.86,193.79,2.5832]
[1735291433649,4.78,193.93,193.7,60.44753261]
[1735291433848,4.78,193.93,193.72,4.78]
[1735291434044,2.5822,193.87,193.76,2.5836]
[1735291434251,1.5446,193.98,193.72,4.78]
[1735291434556,2.5819,193.9,193.83,2.5826]
[1735291434746,1.5446,193.98,193.8,4.78]
[1735291435050,1.5446,193.98,193.81,1.5731]
[1735291435259,2.5809,193.97,193.81,3.2226]
[1735291435946,2.5809,193.97,193.9,2.5817]
[1735291436154,3.2219,193.99,193.81,3.2226]
[1735291436155,5.8026,193.99,193.87,4.78]
[1735291436448,5.8026,193.99,193.92,2.5814]
[1735291436449,3.2219,193.99,193.92,2.5814]
[1735291436746,3.2219,193.99,193.88,4.78]
[1735291436959,3.2219,193.99,193.93,2.5814]
[1735291437148,1.6046,193.99,193.88,4.78]
[1735291437555,1.5639,194.03,193.88,4.78]
[1735291437756,2.5804,194.01,193.88,4.78]
[1735291437944,1.5639,194.03,193.88,4.78]
[1735291438352,2.5807,193.98,193.88,4.78]
[1735291438547,1.5639,194.03,193.93,2.5814]
[1735291438751,1.5639,194.03,193.88,4.78]
[1735291439655,2.5806,194.0,193.92,2.5815]
[1735291440154,1.5639,194.03,193.93,2.5814]
[1735291440354,2.5806,193.99,193.93,2.5814]
[1735291440854,1.5639,194.03,193.94,2.5813]
[1735291441850,1.5639,194.03,193.88,4.78]
[1735291441851,2.5806,194.0,193.88,4.78]
[1735291442048,1.5639,194.03,193.88,4.78]
[1735291442454,2.5813,193.95,193.89,2.5819]
[1735291442656,1.5639,194.03,193.88,4.78]
[1735291443457,2.5804,194.01,193.95,2.5811]
[1735291443658,1.5639,194.03,193.88,4.78]
[1735291443962,2.5809,193.97,193.91,2.5816]
[1735291444358,1.5639,194.03,193.88,4.78]
[1735291444660,2.5811,193.96,193.89,4.78]
[1735291444962,1.5639,194.03,193.88,4.78]
[1735291445264,2.5809,193.98,193.92,2.5815]
[1735291445662,1.5639,194.03,193.89,4.76]
[1735291446353,1.5639,194.03,193.94,2.5812]
[1735291447464,1.5639,194.03,193.95,2.5811]
[1735291447660,1.5639,194.03,193.89,4.76]
[1735291447858,1.5354,194.05,193.89,4.76]
[1735291448162,4.76,194.12,193.89,4.76]
[1735291448459,4.7869,194.15,193.89,4.76]
[1735291449262,4.7869,194.15,194.0,2.5805]
[1735291449565,4.7869,194.15,193.98,4.76]
[1735291450263,0.80725475,194.14,193.95,4.76]
[1735291450967,0.80725475,194.14,193.94,4.76]
[1735291451460,0.80722566,194.13,193.94,4.76]
[1735291451764,0.80727303,194.12,193.94,4.76]
[1735291451967,0.80727303,194.14,193.94,4.76]
[1735291452262,4.7869,194.15,193.94,4.76]
[1735291452263,0.80727303,194.13,193.94,4.76]
[1735291452558,2.5803,194.02,193.96,2.581]
[1735291453063,4.7869,194.15,193.98,2.5807]
[1735291453064,2.58,194.04,193.98,2.5807]
[1735291453258,4.7869,194.15,193.94,4.76]
[1735291453764,2.5792,194.1,194.04,2.5799]
[1735291453964,4.7869,194.15,194.01,4.76]
[1735291454365,2.5793,194.09,194.02,2.5801]
[1735291454663,2.5793,194.09,194.01,4.76]
[1735291455165,4.7869,194.15,193.98,4.76]
[1735291455357,0.80717122,194.14,193.98,4.76]
[1735291455565,0.80717122,194.14,193.93,4.76]
[1735291455757,0.80717122,194.14,193.88,3.1955]
[1735291455960,5.1576,194.13,193.9,4.76]
[1735291456165,5.56717122,194.12,193.88,4.111]
[1735291456461,5.56717122,194.12,193.88,1.529]
[1735291456462,0.80717122,194.11,193.88,1.529]
[1735291456770,0.80717122,194.11,193.87,56.2421]
[1735291456966,0.80717122,194.11,193.86,4.76]
[1735291457259,2.5814,193.93,193.87,2.5821]
[1735291457659,2.5814,193.93,193.77,1.529]
[1735291457660,4.76,194.02,193.85,4.76]
[1735291457860,4.8382,194.01,193.85,4.76]
[1735291458567,4.8382,194.01,193.86,1.6087]
[1735291458767,2.5812,193.95,193.86,1.6087]
[1735291458961,4.8382,194.01,193.86,1.6087]
[1735291459161,4.8382,194.01,193.87,1.6026]
[1735291459869,2.5811,193.96,193.87,1.6026]
[1735291460070,4.8382,194.01,193.87,1.6026]
[1735291461169,4.8382,194.01,193.88,4.76]
[1735291461365,4.8382,194.01,193.89,2.5819]
[1735291461571,2.5812,193.95,193.89,2.5819]
[1735291462072,2.5813,193.94,193.88,7.3421]
[1735291462565,4.8382,194.01,193.87,1.6026]
[1735291462966,4.8382,194.01,193.86,4.1909]
[1735291462967,4.76,194.0,193.83,4.76]
[1735291463161,4.76,194.0,193.75,3.1902]
[1735291463366,0.80782601,193.99,193.75,7.9502]
[1735291463583,0.80782601,193.99,193.75,10.5339]
[1735291463871,0.80782601,193.99,193.75,7.9502]
[1735291464173,0.80782601,193.99,193.76,2.5837]
[1735291464373,0.80782601,193.99,193.75,4.76]
[1735291464966,0.80782601,193.99,193.76,1.5752]
[1735291465165,0.80798995,193.98,193.76,1.5752]
[1735291465373,4.76,194.0,193.76,1.5752]
[1735291465374,0.80798995,193.97,193.76,1.5752]
[1735291465564,4.76,194.0,193.76,1.5752]
[1735291465966,2.5817,193.91,193.76,1.5752]
[1735291466475,4.76,194.0,193.76,1.5752]
[1735291467267,4.8382,194.01,193.76,1.5752]
[1735291467664,3.2644,194.01,193.76,1.5752]
[1735291467870,2.5805,194.0,193.77,0.9488434]
[1735291468072,3.2644,194.01,193.77,0.9488434]
[1735291468569,1.6594,194.01,193.78,0.94875956]
[1735291468771,1.6594,194.01,193.76,1.5752]
[1735291468972,2.5805,194.0,193.84,2.5826]
[1735291469171,2.5805,194.0,193.85,6.3996]
[1735291469372,2.5805,194.0,193.86,6.4024]
[1735291469877,2.5809,193.98,193.86,6.4024]
[1735291470077,1.6594,194.01,193.86,6.4024]
[1735291470979,1.6594,194.01,193.93,2.5814]
[1735291471176,1.5536,194.08,193.93,2.5814]
[1735291471578,1.5536,194.08,193.91,2.5816]
[1735291471774,0.80746279,194.07,193.91,4.76]
[1735291471975,2.5803,194.02,193.91,4.76]
[1735291472182,1.5536,194.08,193.91,4.76]
[1735291472371,7.7262,194.39,193.92,53.66]
[1735291472676,1.6609,194.18,193.92,53.66]
[1735291473382,1.6609,194.18,193.92,70.19135313]
[1735291473585,1.5093,194.23,193.92,70.19135313]
[1735291473586,3.1702,194.23,193.93,1.97932265]
[1735291473774,3.1702,194.23,193.94,0.9480227]
[1735291473973,2.5781,194.19,193.94,0.9480227]
[1735291474179,2.5781,194.19,193.95,1.5257]
[1735291474381,2.5781,194.18,194.1,2.5791]
[1735291474580,2.5781,194.18,194.11,4.76]
[1735291475180,3.1702,194.23,194.06,4.76]
[1735291475981,2.5784,194.16,194.09,2.5793]
[1735291477487,2.5783,194.17,194.06,4.76]
[1735291478188,2.5782,194.18,194.06,4.76]
[1735291478987,3.1702,194.23,194.06,4.76]
[1735291479584,3.1702,194.23,194.09,2.5792]
[1735291479787,3.1702,194.23,194.06,4.76]
[1735291479989,3.1702,194.23,194.12,2.5789]
[1735291480896,2.5776,194.22,194.14,2.5786]
[1735291481397,2.5779,194.2,194.12,2.5789]
[1735291481593,3.1702,194.23,194.07,3.2181]
[1735291481989,3.1702,194.23,194.1,2.579]
[1735291482197,3.1702,194.23,194.07,3.2181]
[1735291482697,3.1702,194.23,194.09,2.5792]
[1735291483499,3.1702,194.23,194.09,4.74]
[1735291484296,2.5785,194.15,194.09,4.74]
[1735291484803,3.1702,194.23,193.93,2.03129995]
[1735291484990,0.80684416,194.22,193.94,8.0404]
[1735291485194,4.74,194.21,193.94,8.0404]
[1735291485390,2.5801,194.03,193.95,2.5811]
[1735291485697,2.5801,194.03,193.94,8.0404]
[1735291486099,2.5801,194.03,193.97,2.5809]
[1735291486401,4.7657,194.12,193.94,8.0404]
[1735291486793,2.58,194.04,193.98,2.5806]
[1735291487100,4.7657,194.12,193.94,8.0404]
[1735291487701,4.7657,194.12,193.97,2.5809]
[1735291488094,2.5795,194.08,193.94,8.0404]
[1735291488304,4.7657,194.12,193.94,8.0404]
[1735291488994,4.7657,194.12,193.98,2.5807]
[1735291489202,4.7657,194.12,193.94,8.0404]
[1735291490501,2.5796,194.07,194.0,2.5804]
[1735291490697,4.7657,194.12,194.01,4.74]
[1735291490902,1.594,194.12,194.06,2.5796]
[1735291491097,4.74,194.21,194.04,4.74]
[1735291491302,1.5007,194.2,194.04,4.74]
[1735291492208,2.5786,194.14,194.06,2.5796]
[1735291492597,1.5007,194.2,194.04,4.74]
[1735291492802,2.5786,194.15,194.04,4.74]
[1735291492999,3.075,194.14,194.04,4.74]
[1735291494096,2.579,194.11,194.04,4.74]
[1735291495205,2.5789,194.13,194.06,2.5797]
[1735291495400,3.075,194.14,194.04,4.74]
[1735291495797,3.075,194.14,193.94,3.3004]
[1735291496004,3.075,194.14,193.95,4.74]
[1735291496303,0.80715451,194.13,193.96,2.5809]
[1735291496895,2.5802,194.03,193.96,2.5809]
[1735291497604,2.5802,194.03,193.97,2.5809]
[1735291498009,7.815,194.14,193.95,4.74]
[1735291498207,3.075,194.14,193.95,4.74]
[1735291498708,2.5797,194.06,193.99,2.5805]
[1735291499114,2.5797,194.06,193.95,4.74]
[1735291499408,2.5797,194.06,194.0,2.5804]
[1735291500711,3.075,194.14,193.95,4.74]
[1735291501209,0.8071586,194.13,193.95,4.74]
[1735291501412,0.8071586,194.13,193.98,2.5807]
[1735291501606,3.075,194.14,193.98,2.5807]
[1735291501801,0.80716051,194.13,193.98,2.5807]
[1735291502001,3.075,194.14,193.98,2.5807]
[1735291502203,3.075,194.14,193.92,53.66]
[1735291502204,0.80716075,194.13,193.92,53.66]
[1735291502402,0.80716075,194.13,193.85,3.2349]
[1735291502803,0.80716075,194.13,193.89,2.5819]
[1735291503311,0.80716075,194.13,193.92,2.5815]
[1735291503808,22.19267051,194.13,193.92,2.5815]
[1735291504111,2.5813,193.94,193.85,3.2349]
[1735291504311,4.76,194.0,193.79,53.62]
[1735291504613,2.5815,193.93,193.85,2.5824]
[1735291504811,4.791,193.99,193.8,4.76]
[1735291505213,2.5812,193.95,193.8,4.76]
[1735291505613,2.5812,193.95,193.88,2.5821]
[1735291505812,2.5813,193.94,193.79,55.2857]
[1735291506417,2.5813,193.94,193.87,2.5822]
[1735291507017,4.791,193.99,193.8,4.74]
[1735291507216,0.80789238,193.98,193.81,4.74]
[1735291507612,2.5817,193.91,193.83,2.5827]
[1735291507818,4.791,193.99,193.81,4.74]
[1735291508514,0.80785825,193.98,193.81,2.583]
[1735291508715,4.791,193.99,193.81,4.74]
[1735291509115,4.791,193.99,193.83,2.5827]
[1735291509116,2.5818,193.91,193.83,2.5827]
[1735291509316,2.5818,193.91,193.81,4.74]
[1735291509719,2.5816,193.92,193.85,2.5825]
[1735291510020,4.791,193.99,193.81,4.74]
[1735291510518,2.5814,193.93,193.81,4.74]
[1735291510921,2.5814,193.93,193.86,2.5823]
[1735291511119,2.5817,193.92,193.86,2.5823]
[1735291511516,4.791,193.99,193.87,2.5822]
[1735291513114,4.791,193.99,193.81,4.74]
[1735291513314,4.791,193.99,193.86,2.5822]
[1735291513514,2.5814,193.94,193.81,4.74]
[1735291513715,4.791,193.99,193.92,2.5815]
[1735291513915,4.791,193.99,193.79,55.2857]
[1735291513916,21.38550976,194.13,193.88,4.74]
[1735291514220,4.74,194.08,193.89,3.1288]
[1735291514425,4.74,194.08,193.93,2.5813]
[1735291514617,4.74,194.08,193.89,3.1288]
[1735291514618,0.80746872,194.07,193.89,3.1288]
[1735291514819,4.74,194.08,193.89,3.1288]
[1735291515117,0.8074396,194.07,193.89,3.1288]
[1735291515316,4.74,194.08,193.89,3.1288]
[1735291515317,2.5806,194.0,193.93,2.5814]
[1735291515813,4.74,194.08,193.93,2.5814]
[1735291516212,4.74,194.09,193.94,2.5812]
[1735291516617,2.5805,194.0,193.94,2.5812]
[1735291517716,4.74,194.09,193.89,3.1288]
[1735291517917,4.74,194.09,193.96,2.5809]
[1735291518119,4.74,194.09,193.89,3.1288]
[1735291518416,2.5808,193.98,193.91,2.5816]
[1735291518618,4.74,194.09,193.89,3.1288]
[1735291518820,0.80753889,194.08,193.79,53.62]
[1735291519022,0.80753889,194.08,193.8,7.9948]
[1735291519224,0.80753889,194.08,193.81,4.74]
[1735291519617,0.80753889,194.08,193.8,3.2548]
[1735291519814,0.80753889,194.08,193.82,4.74]
[1735291520014,2.5826,193.85,193.79,53.62]
[1735291520218,4.74,193.96,193.78,4.74]
[1735291520427,9.482,193.95,193.78,4.74]
[1735291520617,2.5818,193.9,193.78,4.74]
[1735291520922,9.482,193.95,193.78,4.74]
[1735291521926,9.482,193.95,193.81,2.5829]
[1735291522128,0.80807408,193.94,193.78,4.74]
[1735291522320,0.80807408,193.94,193.72,3.2548]
[1735291522515,9.482,193.95,193.72,3.2548]
[1735291522721,0.80815339,193.94,193.72,7.9948]
[1735291523123,2.5831,193.81,193.73,2.5841]
[1735291523527,2.5824,193.86,193.78,2.5834]
[1735291523730,9.482,193.95,193.72,7.9948]
[1735291523930,0.80819739,193.94,193.72,7.9948]